Workbook

Sheet NOVIEMBRE
A2: Banco de Reservas de la Republica Dominicana
A3: AL 28 DE NOVIEMBRE 2025
A4: LIBRO DE VENTA DE SERVICIO
A5: (Valores Expresado en RD$ 9,053,029.31)
E6: 9,053,029.31
A7: LIBRO BANCO
A8: FECHA | C8: BENEFICIARIO | D8: CONCEPTO | E8: DEDITO /EGRESO | F8: CREDITO/INGRESO | G8: Balance
A9: 2025-10-31 | C9: BALANCE ANTERIOR 2025 | D9: BALANCE ANTERIOR | G9: 8,683,987.03
A10: 2025-11-03 | B10: 3950010761 | C10: ARS APS | D10: PAGO SEGUROS MEDICOS | F10: 5,993.60 | G10: =SUM(G9+F10) -> 8,689,980.63
A11: 2025-11-03 | B11: 3950010764 | C11: DEPOSITO ODONTOLOGIA | D11: DEPOSITO ODONTOLOGIA | F11: 5,600.00 | G11: =SUM(G10+F11) -> 8,695,580.63
A12: 2025-11-03 | B12: 4524000000131 | C12: ARS SENASA SUBSIDIADO | D12: PAGO SEGUROS MEDICOS | F12: 895,444.90 | G12: 9,591,025.53
A13: 2025-11-04 | B13: 1260030419 | C13: DEPOSITO ODONTOLOGIA | D13: DEPOSITO ODONTOLOGIA | F13: 3,800.00 | G13: 9,594,825.53
A14: 2025-11-04 | B14: 1260030422 | C14: DEPOSITO EXTRANJERO | D14: DEPOSITO EXTRANJERO | F14: 4,100.00 | G14: 9,598,925.53
A15: 2025-11-04 | B15: 1260030425 | C15: DEPOSITO ODONTOLOGIA | D15: DEPOSITO ODONTOLOGIA | F15: 3,850.00 | G15: 9,602,775.53
A16: 2025-11-04 | B16: 4524000000097 | C16: ARS SENASA A ODONTOLOGIA | D16: PAGO SEGURO MEDICO | F16: 15,000.00 | G16: 9,617,775.53
A17: 2025-11-05 | B17: 45240000000098 | C17: ARS SENASA A ODONTOLOGIA | D17: PAGO SEGURO MEDICO | F17: 15,000.00 | G17: 9,632,775.53
A18: 2025-11-05 | B18: 45240000000008 | C18: ARS SENASA CONTRIBUTIVO | D18: PAGO SEGURO MEDICO | F18: 149,134.26 | G18: 9,781,909.79
A19: 2025-11-05 | B19: 45240000000006 | C19: ARS SENASA CONTRIBUTIVO | D19: PAGO SEGURO MEDICO | F19: 44,528.05 | G19: 9,826,437.84
A20: 2025-11-05 | B20: 3950010453 | C20: DEPOSITO ODONTOLOGIA | D20: DEPOSITO ODONTOLOGIA | F20: 2,050.00 | G20: 9,828,487.84
A21: 2025-11-05 | B21: 3950010456 | C21: DEPOSITO ODONTOLOGIA | D21: DEPOSITO ODONTOLOGIA | F21: 11,400.00 | G21: 9,839,887.84
A22: 2025-11-06 | B22: 3950050442 | C22: DEPOSITO ODONTOLOGIA | D22: DEPOSITO 05/11/2025 ODONTOLOGIA | F22: 3,000.00 | G22: 9,842,887.84
A23: 2025-11-06 | B23: 3950050445 | C23: DEPOSITO ODONTOLOGIA | D23: DEPOSITO 05/11/2025 ODONTOLOGIA | F23: 6,650.00 | G23: 9,849,537.84
A24: 2025-11-06 | B24: 3950050448 | C24: DEPOSITO ODONTOLOGIA | D24: DEPOSITO 5 Y 6 EXTRANJERO | F24: 2,900.00 | G24: 9,852,437.84
A25: 2025-11-07 | B25: 3950010445 | C25: DEPOSITO ODONTOLOGIA | D25: DEPOSITO ODONTOLOGIA 06/11/2025 | F25: 5,700.00 | G25: 9,858,137.84
A26: 2025-11-07 | B26: 3950010448 | C26: DEPOSITO ODONTOLOGIA | D26: DEPOSITO ODONTOLOGIA 06/11/2025 | F26: 1,000.00 | G26: 9,859,137.84
A27: 2025-11-11 | B27: 3950050632 | C27: DEPOSITO EXTRANJERO | D27: DEPOSITO 6,17 Y 11 POBLACION EXTRA EXTRANJERA | F27: 15,300.00 | G27: 9,874,437.84
A28: 2025-11-11 | B28: 3950050635 | C28: DEPOSITO ODONTOLOGIA | D28: DEPOSITO ODONTOLOGIA 7/11/2025 | F28: 4,600.00 | G28: 9,879,037.84
A29: 2025-11-12 | B29: 1260050266 | C29: ARS APS | D29: PAGO SEGUROS MEDICOS | F29: 86,186.60 | G29: 9,965,224.44
A30: 2025-11-12 | B30: 1260050269 | C30: DEPOSITO ODONTOLOGIA | D30: DEPOSITO ODONTOLOGIA 11/11/2025 | F30: 5,600.00 | G30: 9,970,824.44
A31: 2025-11-12 | B31: 1260050272 | C31: DEPOSITO ODONTOLOGIA | D31: DEPOSITO ODONTOLOGIA 11/11/2025 | F31: 400.00 | G31: 9,971,224.44
A32: 2025-11-12 | B32: 41091200670 | C32: COLECTOR DE IMPUESTOS INTERNOS | D32: CALECTAR DE IMPUESTO PAGO IR17 | E32: $29,427.27 | G32: =G31-E32 -> 9,941,797.17
A33: 2025-11-13 | B33: 3950040342 | C33: DEPOSITO EXTRANJERO | D33: DEPOSITO EXTRANJERO 12/11/2025 | F33: 2,000.00 | G33: =G32+F33 -> 9,943,797.17
A34: 2025-11-13 | B34: 3950040345 | C34: DEPOSITO ODONTOLOGIA | D34: DEPOSITO ODONTOLOGIA 12/11/2025 | F34: 9,350.00 | G34: =G33+F34 -> 9,953,147.17
A35: 2025-11-13 | B35: 3950040348 | C35: DEPOSITO ODONTOLOGIA | D35: DEPOSITO ODONTOLOGIA 12/11/2025 | F35: 5,750.00 | G35: 9,958,897.17
A36: 2025-11-14 | B36: 4524000050586 | C36: TRANSFERENCIA ACH DE F | D36: PAGO PROVEEDORES ARS SIMAG,SA | F36: 7,209.90 | G36: 9,966,107.07
A37: 2025-11-14 | B37: 4524000001062 | C37: ARS SIMAG | D37: PAGO SEGURO MEDICO | F37: 8,653.35 | G37: 9,974,760.42
A38: 2025-11-14 | B38: 3950010449 | C38: DEPOSITO ODONTOLOGIA | D38: DEPOSITO ODONTOLOGIA | F38: 15,600.00 | G38: 9,990,360.42
A39: 2025-11-14 | B39: 3950010452 | C39: DEPOSITO ODONTOLOGIA | D39: DEPOSITO ODONTOLOGIA 13/11/2025 | F39: 5,200.00 | G39: 9,995,560.42
A40: 2025-11-17 | B40: 3950040409 | C40: DEPOSITO EXTRANJERO | D40: DEPOSITO EXTRANJERO | F40: 2,000.00 | G40: 9,997,560.42
A41: 2025-11-17 | B41: 3950040412 | C41: DEPOSITO ODONTOLOGIA | D41: DEPOSITO ODONTOLOGIA DEL 10 AL 14 | F41: 7,500.00 | G41: 10,005,060.42
A42: 2025-11-17 | B42: 3950040415 | C42: DEPOSITO ODONTOLOGIA | D42: DEPOSITO ODONTOLOGIA DEL 10 AL 14 | F42: 1,100.00 | G42: 10,006,160.42
A43: 2025-11-18 | B43: 41133540144 | C43: PAGO SUPLIDORES | D43: PAGO SUPLIDORES TUBANCO EMPRESA ARS | F43: 1,422.23 | G43: 10,007,582.65
A44: 2025-11-18 | B44: 4524000000042 | C44: ARS RANACER | D44: PAGO SEGUROS MEDICOS | F44: 39,924.05 | G44: 10,047,506.70
A45: 2025-11-18 | B45: 3950020553 | C45: PAGO ODONTOLOGIA | D45: PAGO ODONTOLOGIA 17/11/2025 | F45: 9,400.00 | G45: 10,056,906.70
A46: 2025-11-19 | B46: 3950010101 | C46: DEPOSITO ODONTOLOGIA | D46: DEPOSITO ODONTOLOGIA 18/11/2025 | F46: 2,650.00 | G46: 10,059,556.70
A47: 2025-11-19 | B47: 3950010104 | C47: DEPOSITO ODONTOLOGIA | D47: DEPOSITO ODONTOLOGIA 18/11/2025 | F47: 20,700.00 | G47: 10,080,256.70
A48: 2025-11-19 | B48: 3950010107 | C48: DEPOSITO EXTRANJERO | D48: DEPOSITO EXTRANJERO 19/11/2025 | F48: 14,600.00 | G48: 10,094,856.70
A49: 2025-11-20 | B49: 4524000038759 | C49: ARS MONUMENTAL | D49: PAGO SEGUROS MEDICOS | F49: 52,199.22 | G49: 10,147,055.92
A50: 2025-11-20 | B50: 4524000054438 | C50: ARS UNIVERSAL | D50: PAGO SEGUROS MEDICOS | F50: 10,946.42 | G50: 10,158,002.34
A51: 2025-11-20 | B51: 5350050481 | C51: DEPOSITO ODONTOLOGIA | D51: DEPOSITO ODONTOLOGIA 19/11/2025 | F51: 1,000.00 | G51: 10,159,002.34
A52: 2025-11-20 | B52: 5350050484 | C52: DEPOSITO ODONTOLOGIA | D52: DEPOSITO ODONTOLOGIA 19/11/2025 | F52: 700.00 | G52: 10,159,702.34
A53: 2025-11-20 | B53: 41162088020 | C53: SR YAUGEL M TEJADA | D53: PAGO FACTURA #B1100000684 | E53: $1,584.00 | G53: =G52-E53 -> 10,158,118.34
A54: 2025-11-21 | B54: 3950010186 | C54: DEPOSITO EXTRANJEROS | D54: DEPOSITO EXTRANJEROS | F54: 8,400.00 | G54: =G53+F54 -> 10,166,518.34
A55: 2025-11-24 | B55: 3950010189 | C55: DEPOSITO ODONTOLOGIA | D55: DEPOSITO ODONTOLOGIA | F55: 10,500.00 | G55: =G54+F55 -> 10,177,018.34
A56: 2025-11-24 | B56: 3950010192 | C56: DEPOSITO ODONTOLOGIA | D56: DEPOSITO ODONTOLOGIA | F56: 2,400.00 | G56: 10,179,418.34
A57: 2025-11-24 | B57: 1260030448 | C57: DEPOSITO ODONTOLOGIA | D57: DEPOSITO ODONTOLOGIA | F57: 2,500.00 | G57: 10,181,918.34
A58: 2025-11-24 | B58: 1260030451 | C58: DEPOSITO ODONTOLOGIA | D58: DEPOSITO ODONTOLOGIA | F58: 15,500.00 | G58: 10,197,418.34
A59: 2025-11-25 | B59: 7537 | C59: EUNICE DEL CARMEN LUNA | D59: CK PAGADO EN CAJA | E59: $8,390.00 | G59: =G58-E59 -> 10,189,028.34
A60: 2025-11-25 | B60: 3950010361 | C60: DEPOSITO ODONTOLOGIA | D60: DEPOSITO ODONTOLOGIA | F60: 18,200.00 | G60: =G59+F60 -> 10,207,228.34
A61: 2025-11-25 | B61: 3950010364 | C61: DEPOSITO ODONTOLOGIA | D61: DEPOSITO ODONTOLOGIA | F61: 5,400.00 | G61: =G60+F61 -> 10,212,628.34
A62: 2025-11-25 | B62: 3950010367 | C62: DEPOSITO ODONTOLOGIA | D62: DEPOSITO ODONTOLOGIA | F62: 1,600.00 | G62: =G61+F62 -> 10,214,228.34
A63: 2025-11-26 | B63: 41198582102 | C63: SR JULIO J GARCIA | D63: PAGO NOMINA NOVIEMBRE 2025 | E63: $18,000.00 | G63: =G62-E63 -> 10,196,228.34
A64: 2025-11-26 | B64: 41198609388 | C64: SR DARLING R CORNIEL | D64: PAGO NOMINA NOVIEMBRE 2026 | E64: $15,000.00 | G64: =G63-E64 -> 10,181,228.34
A65: 2025-11-26 | B65: 41198642519 | C65: SR MERCEDES NINA | D65: PAGO NOMINA NOVIEMBRE 2027 | E65: $5,500.00 | G65: =G64-E65 -> 10,175,728.34
A66: 2025-11-26 | B66: 41198754914 | C66: COMPANIA DOMINICANA DE TELEFONOS SA | D66: PAGO FACTURA #E450000095356 | E66: $34,156.44 | G66: =G65-E66 -> 10,141,571.90
A67: 2025-11-26 | B67: 41198808757 | C67: BRAILIN D CABRERA | D67: PAGO FACTURA #B1100000685 | E67: $5,700.00 | G67: =G66-E67 -> 10,135,871.90
A68: 2025-11-26 | B68: 3950010569 | C68: DEPOSITO EXTRANJERO | D68: DEPOSITO EXTRANJERO | F68: 1,700.00 | G68: =G67+F68 -> 10,137,571.90
A69: 2025-11-26 | B69: 3950010572 | C69: DEPOSITO ODONTOLOGIA | D69: DEPOSITO ODONTOLOGIA | F69: 1,300.00 | G69: =G68+F69 -> 10,138,871.90
A70: 2025-11-26 | B70: 3950010575 | C70: DEPOSITO ODONTOLOGIA | D70: DEPOSITO ODONTOLOGIA | F70: 21,600.00 | G70: =G69+F70 -> 10,160,471.90
A71: 2025-11-27 | B71: 4524000000011 | C71: ARS ASEMAP | D71: PAGO SEGURO MEDICO | F71: 6,160.50 | G71: =G70+F71 -> 10,166,632.40
A72: 2025-11-27 | B72: 41207054406 | C72: SR ANTOLIN PIMENTEL | D72: PAGO NOMINA NOVIEMBRE 2025 | E72: $10,500.00 | G72: =G71-E72 -> 10,156,132.40
A73: 2025-11-27 | B73: 41207260358 | C73: DE LOS SANTOS DENTAL SA | D73: PAGO FACTURA E45000000123 | E73: $13,572.16 | G73: 10,142,560.24
A74: 2025-11-27 | B74: 41207286979 | C74: STRONICS SRL | D74: PAGO FACTURA #B15000001978 | E74: $4,750.00 | G74: 10,137,810.24
A75: 2025-11-27 | B75: 41207318763 | C75: EXP DOMINICANA SRL | D75: PAGO FACTURA #E450000000221 | E75: $40,030.00 | G75: 10,097,780.24
A76: 2025-11-27 | B76: 41207378136 | C76: CRUZ AYALA SRL | D76: PAGO FACTURA E4500000001550 | E76: $20,760.00 | G76: 10,077,020.24
A77: 2025-11-27 | B77: 41207408717 | C77: TIO DEPOSITO DENTAL SRL | D77: PAGO FACTURA B15000000842 | E77: $3,091.93 | G77: 10,073,928.31
A78: 2025-11-27 | B78: 41207460730 | C78: LA ANGUSTINA AUTO IMPORT SRL | D78: PAGO FACTURA B1500000467 | E78: $50,027.50 | G78: 10,023,900.81
A79: 2025-11-27 | B79: 41207496279 | C79: HOSPIFAR SRL | D79: PAGO FACTURA E450000000712 | E79: $13,398.00 | G79: 10,010,502.81
A80: 2025-11-27 | B80: 41207527999 | C80: JM DENTAL SRL | D80: PAGO FACTURA B1500000460 | E80: $6,195.19 | G80: 10,004,307.62
A81: 2025-11-27 | B81: 41207568563 | C81: DEPOSITO DENTAL FERNANDEZ NUÑEZ | D81: PAGO FACTURA B1500000291 | E81: $8,645.00 | G81: 9,995,662.62
A82: 2025-11-27 | B82: 41207602523 | C82: TRANSPORTACIONES Y SERVICIOS | D82: PAGO FACTURA B1500000081 | E82: $12,350.00 | G82: 9,983,312.62
A83: 2025-11-27 | B83: 41207999219 | C83: SR WILLY A CRUZ | D83: PAGO FACTURA B1500001418/1419/1429/1434 | E83: $44,944.50 | G83: =G82-E83 -> 9,938,368.12
A84: 2025-11-27 | B84: 41208032104 | C84: JUNQUITO GAS | D84: PAGO FACTURA B1500002158/2184 | E84: $18,247.60 | G84: 9,920,120.52
A85: 2025-11-27 | B85: 41208056793 | C85: BIO NOVA SRL | D85: PAGO FACTURA E45000000008 | E85: $27,918.00 | G85: 9,892,202.52
A86: 2025-11-27 | B86: 41208098041 | C86: ROFASA FARMA SAS | D86: PAGO FACTURA B15000001077/E4500000002 | E86: $8,479.00 | G86: 9,883,723.52
A87: 2025-11-27 | B87: 41208122544 | C87: AREYOBA Y ASOCIADOS SRL | D87: PAGO FACTURA B1500000276 | E87: $26,496.24 | G87: 9,857,227.28
A88: 2025-11-27 | B88: 41208154697 | C88: BIO NUCLEAR SA | D88: PAGO FACTURA E450000008984 | E88: $8,058.75 | G88: 9,849,168.53
A89: 2025-11-27 | B89: 41208178093 | C89: SERVICIOS GRAFICOS TITO, EIRL | D89: PAGO FACTURA B1500001095 | E89: $33,504.50 | G89: 9,815,664.03
A90: 2025-11-27 | B90: 41208205954 | C90: PUNTO DENTAL SPOT JAL SRL | D90: PAGO FACTURA B1500000339 | E90: $56,692.20 | G90: 9,758,971.83
A91: 2025-11-27 | B91: 41208238593 | C91: MEDI SAN SRL | D91: PAGO FACTURA E45000000293/297 | E91: $45,340.00 | G91: 9,713,631.83
A92: 2025-11-27 | B92: 412008286823 | C92: ZEN PHARMACEUTHICAL SRL | D92: TRANSFERENCIA ACH B1500001563 | E92: $27,441.07 | G92: =G91-E92 -> 9,686,190.76
A93: 2025-11-27 | B93: 41208324083 | C93: HARALD FRANCISCO RODRIGUEZ | D93: TRANSFERENCIA ACH B1500000023/24 | E93: $88,399.90 | G93: =G92-E93 -> 9,597,790.86
A94: 2025-11-27 | B94: 3950020457 | C94: DEPOSITO ODONTOLOGIA | D94: DEPOSITO ODONTOLOGIA | F94: 1,500.00 | G94: =G93+F94 -> 9,599,290.86
A95: 2025-11-27 | B95: 395002460 | C95: DEPOSITO ODONTOLOGIA | D95: DEPOSITO ODONTOLOGIA | F95: 1,300.00 | G95: =G94+F95 -> 9,600,590.86
A96: 2025-11-28 | B96: 4524000033005 | C96: ARS YUNEN | D96: PAGO SEGUROS MEDICOS | F96: 14,745.21 | G96: =G95+F96 -> 9,615,336.07
A97: 2025-11-28 | B97: 41215830270 | C97: AGROPECUARIA FERNANDEZ MUÑOZ SRL | D97: PAGO FACTURA E450000000533/534 | E97: $12,391.00 | G97: =G96-E97 -> 9,602,945.07
A98: 2025-11-28 | B98: 41215872584 | C98: LABORATORIO DENTAL HNOS | D98: PAGO B1500001032 | E98: $46,361.64 | G98: 9,556,583.43
A99: 2025-11-28 | B99: 41215905717 | C99: COMPAÑÍA DE TEL DOMINICANOS | D99: PAGO E450000097446 | E99: $6,280.51 | G99: 9,550,302.92
A100: 2025-11-28 | B100: 41216255494 | C100: SR FRANCISCO A MARTINEZ | D100: PAGO B15000003734 | E100: $71,820.00 | G100: 9,478,482.92
A101: 2025-11-28 | B101: 41216288170 | C101: SURTIDORA PHILPA SRL | D101: PAGO FACTURA 1500000721 | E101: $99,158.85 | G101: 9,379,324.07
A102: 2025-11-28 | B102: 41216343840 | C102: CAPELLAN DENTAL SRL | D102: TRANSFERENCIA ACH | E102: $19,668.15 | G102: 9,359,655.92
A103: 2025-11-28 | B103: 41216460341 | C103: RAMIMAGING SRL | D103: TRANSFERENCIA ACH B15000001809 | E103: 9,959.32 | G103: 9,349,696.60
A104: 2025-11-28 | B104: 41218647834 | C104: PENANTIAL INDUSTRUAL SA | D104: TRANSFERENCIA ACH E4500000000015 | E104: $7,350.00 | G104: 9,342,346.60
A105: 2025-11-28 | B105: 41218677726 | C105: AZULCORP SRL | D105: TRANSFERENCIA ACH B1500000555/556 | E105: $41,263.01 | G105: 9,301,083.59
A106: 2025-11-28 | B106: 41218704020 | C106: ESTACION LA CEIBITA SRL | D106: TRANSFERENCIA ACH B1500003065/3077 | E106: $44,457.46 | G106: 9,256,626.13
A107: 2025-11-28 | B107: 41218725805 | C107: SR SALVADOR A MEJIA | D107: PAGO FACTURA B15000000194 | E107: $39,550.00 | G107: 9,217,076.13
A108: 2025-11-28 | B108: 41218748429 | C108: SERVICIOS DE MECANICA ELVI SANTOS SRL | D108: PAGO FACTURA B15000000140/142 | E108: $35,369.00 | G108: 9,181,707.13
A109: 2025-11-28 | B109: 41218761881 | C109: AREYOBA Y ASOCIADOS SRL | D109: PAGO FACTURA B1500000277 | E109: $5,695.20 | G109: 9,176,011.93
A110: 2025-11-28 | B110: 412187779567 | C110: SR JUAN ADAMES | D110: PAGO FACTURA B1500000182 | E110: $9,120.00 | G110: 9,166,891.93
A111: 2025-11-28 | B111: 41218823683 | C111: SR LUIS R SILVERIO | D111: PAGO FACTURA B1500000279 | E111: $61,008.70 | G111: 9,105,883.23
A112: 2025-11-28 | B112: 41218848843 | C112: ALMACENES EL ENCANTO, SAS | D112: PAGO FACTURA E4500000002353 | E112: $58,910.00 | G112: 9,046,973.23
A113: 2025-11-28 | B113: 41218871346 | C113: FERRETERIA OCHOA S.A | D113: PAGO FACTURA | E113: $76,486.58 | G113: 8,970,486.65
A114: 2025-11-28 | B114: 4524000000015 | C114: ARS FUTURO | D114: PAGO SEGUROS MEDICOS | F114: 84,750.73 | G114: =G113+F114 -> 9,055,237.38
A115: 2025-11-30 | C115: BANRESERVAS | D115: PAGO DE COMICION GASTOS BANCARIOS | E115: $2,208.07 | G115: =G114-E115 -> 9,053,029.31

Sheet ¿FONDO NOVIEMBRE 2025
A3: SERVICIO REGIONAL DE SALUD NORCENTRAL II
A5: AL 28 NOVIEMBRE 2025
A6: LIBRO FONDO OPERATIVO
A7: (Valores Expresado en RD$8.069.96
C8: HOSPITAL DR. RAFAEL CASTRO
A10: LIBRO BANCO
A11: FECHA | B11: CHEQUE NUMERO | C11: BENEFICIARIO | D11: CONCEPTO | E11: DEDITO /EGRESO | F11: CREDITO/INGRESO | G11: Balance
A13: 2025-10-30 | C13: BALANCE FINAL | G13: 4,728.03
A14: 2025-11-07 | B14: 4524000000026 | C14: TESORERIA | D14: PAGO DE TESORERIA | F14: 749,599.33 | G14: =G13+F14 -> 754,327.36
A15: 2025-11-14 | B15: 41108383650 | C15: ALMANZAR ESTEVEZ | D15: PAGO FACT.E450000000019 | E15: 18,316.87 | G15: =G14-E15 -> 736,010.49
A16: 2025-11-14 | B16: 941108383650 | C16: AREYOVA&ASOCIADOS SRL | D16: PAGO FACT.B1500000275 | E16: 56,648.18 | G16: =G15-E16 -> 679,362.31
A17: 2025-11-14 | B17: 41108433090 | C17: AGROPECUARIA FERNANDEZ | D17: PAG.FACT. E45000000493/494 | E17: 11,133.00 | G17: 668,229.31
A18: 2025-11-14 | B18: 41108457649 | C18: CRUZ AYALA, SRL | D18: PAGO FACT.E450000001551 | E18: 323,706.42 | G18: 344,522.89
A19: 2025-11-14 | B19: 41108485926 | C19: DISTRIBUIDORA JOSE VASQUEZ | D19: PAGO FACT.E450000000025 | E19: 14,760.00 | G19: 329,762.89
A20: 2025-11-14 | B20: 41108516079 | C20: ESTACION LA CEIBITA, SRL | D20: PAGO FACT. B1500003076 | E20: 176,653.87 | G20: 153,109.02
A21: 2025-11-14 | B21: 41108566232 | C21: FARMACEUTICA DALMASI, SRL | D21: PAGO FACT.E450000000066 | E21: 7,075.28 | G21: 146,033.74
A22: 2025-11-14 | B22: 41108589721 | C22: GRUPO FARMACEUTICO CAR-M | D22: PAGO FACT.E4500000000441 | E22: 89,680.00 | G22: 56,353.74
A23: 2025-11-14 | B23: 41108618564 | C23: HEXAPOWER PHARMA SRL | D23: PAGO FACT.E45000000142 | E23: 29,500.00 | G23: 26,853.74
A24: 2025-11-14 | B24: 41108646323 | C24: SUPLIMED SRL | D24: PAGO FACT.E45000000355 | E24: 13,961.90 | G24: 12,891.84
A25: 2025-11-17 | B25: 41127298316 | C25: SRA FRANELISA A MARMOL (NULO) | D25: VIATICO MAS TRANSP. (NULO) | E25: 0.00 | G25: 12,891.84
A26: 2025-11-17 | B26: 41127328071 | C26: COLECTOR DE IMPUESTO INTERNO | D26: PAGO COMPLEMENTARIO IR17 | E26: 3,450.23 | G26: 9,441.61
A27: 2025-11-17 | C27: COMISIONES BANCARIAS | D27: PAGO IMPUESTO A LA DGII | E27: 1,371.65 | G27: =G26-E27 -> 8,069.96
